[Event "*** Titled Tuesday Blitz"]
[Site "Chess.com"]
[Date "2020.04.21"]
[Round "5"]
[White "arjwezhrtdrz"]
[Black "smshk35"]
[Result "0-1"]
[WhiteElo "2151"]
[BlackElo "2345"]
[TimeControl "180+1"]
[EndTime "10:51:51 PDT"]
[Termination "smshk35 won by resignation"]

1. e4 {[%clk 0:02:59.6]} 1... c5 {[%clk 0:03:00]} 2. c3 {[%clk 0:02:59.6]} 2...
Nf6 {[%clk 0:02:58.8]} 3. e5 {[%clk 0:02:59.7]} 3... Nd5 {[%clk 0:02:58.7]} 4.
Nf3 {[%clk 0:02:59.3]} 4... e6 {[%clk 0:02:58.5]} 5. d4 {[%clk 0:02:59]} 5...
cxd4 {[%clk 0:02:59.4]} 6. cxd4 {[%clk 0:02:59]} 6... b6 {[%clk 0:02:59.9]} 7.
Bc4 {[%clk 0:02:53.7]} 7... Ba6 {[%clk 0:02:54.7]} 8. Bxa6 {[%clk 0:02:52.5]}
8... Nxa6 {[%clk 0:02:55.6]} 9. O-O {[%clk 0:02:52.7]} 9... Be7 {[%clk
0:02:55.2]} 10. Qe2 {[%clk 0:02:52.9]} 10... Nac7 {[%clk 0:02:54.1]} 11. Nc3
{[%clk 0:02:50.4]} 11... O-O {[%clk 0:02:52.5]} 12. Bd2 {[%clk 0:02:50.5]} 12...
Rc8 {[%clk 0:02:44.1]} 13. Rac1 {[%clk 0:02:50.1]} 13... f5 {[%clk 0:02:41]} 14.
Nxd5 {[%clk 0:02:40.7]} 14... Nxd5 {[%clk 0:02:40.4]} 15. Rxc8 {[%clk
0:02:35.8]} 15... Qxc8 {[%clk 0:02:41.3]} 16. Rc1 {[%clk 0:02:35.8]} 16... Qb7
{[%clk 0:02:36.5]} 17. h3 {[%clk 0:02:29]} 17... Rc8 {[%clk 0:02:31.7]} 18. Rc4
{[%clk 0:02:29]} 18... Qa6 {[%clk 0:02:23.1]} 19. Rxc8+ {[%clk 0:02:26.4]} 19...
Qxc8 {[%clk 0:02:24]} 20. Bg5 {[%clk 0:02:25.5]} 20... Bxg5 {[%clk 0:02:20.8]}
21. Nxg5 {[%clk 0:02:25.7]} 21... Qc1+ {[%clk 0:02:21]} 0-1

[Event "*** Titled Tuesday Blitz"]
[Site "Chess.com"]
[Date "2020.04.21"]
[Round "5"]
[White "drd_davi"]
[Black "davigator"]
[Result "0-1"]
[WhiteElo "2406"]
[BlackElo "2398"]
[TimeControl "180+1"]
[EndTime "10:52:44 PDT"]
[Termination "davigator won by resignation"]

1. e4 {[%clk 0:03:00.9]} 1... c5 {[%clk 0:02:58.9]} 2. Nf3 {[%clk 0:02:59.4]}
2... Nc6 {[%clk 0:02:58.1]} 3. Bb5 {[%clk 0:02:58.8]} 3... g6 {[%clk 0:02:56]}
4. Bxc6 {[%clk 0:02:58.2]} 4... bxc6 {[%clk 0:02:56.6]} 5. O-O {[%clk
0:02:56.9]} 5... Bg7 {[%clk 0:02:57]} 6. Re1 {[%clk 0:02:53.4]} 6... Nf6 {[%clk
0:02:55.6]} 7. Nc3 {[%clk 0:02:51]} 7... O-O {[%clk 0:02:55.2]} 8. e5 {[%clk
0:02:43.4]} 8... Nd5 {[%clk 0:02:53.7]} 9. Nxd5 {[%clk 0:02:42.8]} 9... cxd5
{[%clk 0:02:53]} 10. d4 {[%clk 0:02:42.9]} 10... c4 {[%clk 0:02:46.8]} 11. b3
{[%clk 0:02:40.8]} 11... cxb3 {[%clk 0:02:45.5]} 12. axb3 {[%clk 0:02:39.9]}
12... d6 {[%clk 0:02:42.1]} 13. h3 {[%clk 0:02:39.1]} 13... Bf5 {[%clk
0:02:39.5]} 14. exd6 {[%clk 0:02:34.2]} 14... exd6 {[%clk 0:02:38.8]} 15. Bf4
{[%clk 0:01:59.6]} 15... Qc7 {[%clk 0:02:28.8]} 16. Ra2 {[%clk 0:01:51.1]} 16...
a5 {[%clk 0:02:25.7]} 17. Qd2 {[%clk 0:01:47.8]} 17... Rfc8 {[%clk 0:02:24.2]}
18. Rxa5 {[%clk 0:01:39.8]} 18... Qxa5 {[%clk 0:02:12.2]} 0-1

[Event "*** Titled Tuesday Blitz"]
[Site "Chess.com"]
[Date "2020.04.21"]
[Round "5"]
[White "josephymwale33"]
[Black "warmoatmeal"]
[Result "1-0"]
[WhiteElo "2295"]
[BlackElo "1981"]
[TimeControl "180+1"]
[EndTime "10:52:54 PDT"]
[Termination "josephymwale33 won by resignation"]

1. e4 {[%clk 0:03:00.9]} 1... e6 {[%clk 0:02:58.1]} 2. d4 {[%clk 0:02:59.8]}
2... d5 {[%clk 0:02:56.1]} 3. Nd2 {[%clk 0:03:00.7]} 3... Nf6 {[%clk 0:02:54.5]}
4. e5 {[%clk 0:03:00.2]} 4... Nfd7 {[%clk 0:02:55.1]} 5. Bd3 {[%clk 0:03:00.1]}
5... c5 {[%clk 0:02:55.6]} 6. c3 {[%clk 0:02:59.6]} 6... Nc6 {[%clk 0:02:56]} 7.
Ne2 {[%clk 0:02:59.5]} 7... Be7 {[%clk 0:02:54.2]} 8. f4 {[%clk 0:02:56.9]} 8...
b6 {[%clk 0:02:46.4]} 9. Nf3 {[%clk 0:02:56.9]} 9... Bb7 {[%clk 0:02:46.4]} 10.
O-O {[%clk 0:02:56.6]} 10... Qc7 {[%clk 0:02:45.9]} 11. f5 {[%clk 0:02:56.9]}
11... O-O-O {[%clk 0:02:45.4]} 12. a4 {[%clk 0:02:53.3]} 12... a5 {[%clk
0:02:14.1]} 13. Nf4 {[%clk 0:02:31.2]} 13... exf5 {[%clk 0:02:11.1]} 14. Bxf5
{[%clk 0:02:29.9]} 14... g6 {[%clk 0:02:11.4]} 15. Bh3 {[%clk 0:02:26]} 15...
Nb8 {[%clk 0:01:56.8]} 16. e6 {[%clk 0:02:21.2]} 16... Nf6 {[%clk 0:01:37.6]}
17. exf7+ {[%clk 0:02:19.3]} 17... Nbd7 {[%clk 0:01:37.9]} 18. Ne6 {[%clk
0:02:20.2]} 18... Qd6 {[%clk 0:01:36]} 19. Bf4 {[%clk 0:02:13.6]} 1-0

[Event "*** Titled Tuesday Blitz"]
[Site "Chess.com"]
[Date "2020.04.21"]
[Round "5"]
[White "FMJoseHerrera"]
[Black "Igrok3069"]
[Result "0-1"]
[WhiteElo "2611"]
[BlackElo "2783"]
[TimeControl "180+1"]
[EndTime "10:52:55 PDT"]
[Termination "Igrok3069 won by resignation"]

1. Nf3 {[%clk 0:03:00.9]} 1... d5 {[%clk 0:02:59.7]} 2. g3 {[%clk 0:02:58.1]}
2... c6 {[%clk 0:02:59.8]} 3. Bg2 {[%clk 0:02:58.1]} 3... Bg4 {[%clk 0:02:58.5]}
4. d3 {[%clk 0:02:58.6]} 4... e6 {[%clk 0:02:57.6]} 5. O-O {[%clk 0:02:58.7]}
5... Bd6 {[%clk 0:02:57.3]} 6. c3 {[%clk 0:02:59.3]} 6... Nd7 {[%clk 0:02:47.9]}
7. Qb3 {[%clk 0:02:58.6]} 7... Qc7 {[%clk 0:02:42.1]} 8. c4 {[%clk 0:02:57.2]}
8... Ngf6 {[%clk 0:02:40]} 9. cxd5 {[%clk 0:02:57.1]} 9... exd5 {[%clk
0:02:38.5]} 10. Nc3 {[%clk 0:02:57.1]} 10... O-O {[%clk 0:02:36.6]} 11. Bg5
{[%clk 0:02:54.4]} 11... h6 {[%clk 0:02:34.3]} 12. Bd2 {[%clk 0:02:53.4]} 12...
Rae8 {[%clk 0:02:30.8]} 13. Rac1 {[%clk 0:02:47.3]} 13... Qb6 {[%clk 0:02:14.9]}
14. Be3 {[%clk 0:02:42.5]} 14... Qxb3 {[%clk 0:02:11]} 15. axb3 {[%clk
0:02:43.4]} 15... Bc5 {[%clk 0:02:02.9]} 16. Nxd5 {[%clk 0:02:39.2]} 16... Nxd5
{[%clk 0:02:01.9]} 17. Bxc5 {[%clk 0:02:38.9]} 17... Nxc5 {[%clk 0:02:02]} 18.
Rxc5 {[%clk 0:02:39.4]} 18... Rxe2 {[%clk 0:02:01.9]} 19. Ne5 {[%clk 0:02:36.9]}
19... Rxe5 {[%clk 0:02:00.6]} 0-1

[Event "*** Titled Tuesday Blitz"]
[Site "Chess.com"]
[Date "2020.04.21"]
[Round "5"]
[White "mrsavic77"]
[Black "gena217"]
[Result "1/2-1/2"]
[WhiteElo "2752"]
[BlackElo "2902"]
[TimeControl "180+1"]
[EndTime "10:53:11 PDT"]
[Termination "Game drawn by repetition"]

1. e4 {[%clk 0:03:00.1]} 1... c6 {[%clk 0:03:00.1]} 2. d4 {[%clk 0:02:59.7]}
2... d5 {[%clk 0:03:01]} 3. e5 {[%clk 0:02:59.8]} 3... Bf5 {[%clk 0:03:00.9]} 4.
Nf3 {[%clk 0:02:59.3]} 4... e6 {[%clk 0:03:00.6]} 5. Be2 {[%clk 0:02:59.9]} 5...
Ne7 {[%clk 0:03:01]} 6. O-O {[%clk 0:03:00.4]} 6... c5 {[%clk 0:03:01.5]} 7. c4
{[%clk 0:02:48.8]} 7... Nbc6 {[%clk 0:03:00.9]} 8. Na3 {[%clk 0:02:44.9]} 8...
a6 {[%clk 0:03:00]} 9. Qa4 {[%clk 0:02:39.5]} 9... b5 {[%clk 0:02:04.4]} 10.
cxb5 {[%clk 0:02:36]} 10... axb5 {[%clk 0:02:04.1]} 11. Qxb5 {[%clk 0:02:33.6]}
11... c4 {[%clk 0:02:02.8]} 12. b3 {[%clk 0:02:31.8]} 12... Rb8 {[%clk
0:01:01.1]} 13. Qa4 {[%clk 0:02:28.8]} 13... Ra8 {[%clk 0:00:55.4]} 14. Qb5
{[%clk 0:02:28.4]} 14... Rb8 {[%clk 0:00:50.2]} 15. Qa4 {[%clk 0:02:27.9]} 15...
Ra8 {[%clk 0:00:50.4]} 16. Qb5 {[%clk 0:02:27.1]} 16... Rb8 {[%clk 0:00:48.8]}
1/2-1/2

[Event "*** Titled Tuesday Blitz"]
[Site "Chess.com"]
[Date "2020.04.21"]
[Round "5"]
[White "Chessy222222"]
[Black "Filip_Covic"]
[Result "0-1"]
[WhiteElo "2098"]
[BlackElo "2306"]
[TimeControl "180+1"]
[EndTime "10:53:16 PDT"]
[Termination "Filip_Covic won by resignation"]

1. e4 {[%clk 0:03:00]} 1... c5 {[%clk 0:02:58.7]} 2. Nf3 {[%clk 0:02:59.5]} 2...
Nc6 {[%clk 0:02:59.2]} 3. Bb5 {[%clk 0:02:59.1]} 3... g6 {[%clk 0:02:59.4]} 4.
O-O {[%clk 0:02:55.3]} 4... Bg7 {[%clk 0:02:59.5]} 5. Re1 {[%clk 0:02:54.8]}
5... Nf6 {[%clk 0:02:59.3]} 6. e5 {[%clk 0:02:52.7]} 6... Nd5 {[%clk 0:02:59.5]}
7. Nc3 {[%clk 0:02:52.9]} 7... Nc7 {[%clk 0:02:59.6]} 8. Bxc6 {[%clk 0:02:50.6]}
8... dxc6 {[%clk 0:03:00.5]} 9. Ne4 {[%clk 0:02:47.3]} 9... b6 {[%clk
0:03:00.3]} 10. Nf6+ {[%clk 0:02:45.8]} 10... Kf8 {[%clk 0:03:00.6]} 11. Ne4
{[%clk 0:02:44.6]} 11... h6 {[%clk 0:03:01.2]} 12. h3 {[%clk 0:02:39.1]} 12...
Kg8 {[%clk 0:02:59.7]} 13. d3 {[%clk 0:02:36.5]} 13... Kh7 {[%clk 0:02:59.5]}
14. a4 {[%clk 0:02:23.9]} 14... a5 {[%clk 0:02:56.9]} 15. Bd2 {[%clk 0:01:32.5]}
15... Re8 {[%clk 0:02:55.4]} 16. Qe2 {[%clk 0:01:27.8]} 16... Be6 {[%clk
0:02:55.1]} 17. b3 {[%clk 0:01:25.8]} 17... f5 {[%clk 0:02:55.1]} 18. Neg5+
{[%clk 0:01:22.2]} 18... hxg5 {[%clk 0:02:54.3]} 19. Nxg5+ {[%clk 0:01:23.1]}
19... Kg8 {[%clk 0:02:54.8]} 20. Nxe6 {[%clk 0:01:22.6]} 20... Nxe6 {[%clk
0:02:54.2]} 21. f4 {[%clk 0:01:21.8]} 21... Kf7 {[%clk 0:02:46.2]} 22. g4 {[%clk
0:01:21.2]} 22... Rh8 {[%clk 0:02:44]} 23. Kg2 {[%clk 0:01:19.8]} 23... Qd5+
{[%clk 0:02:41.3]} 24. Kg3 {[%clk 0:01:18.7]} 24... Nd4 {[%clk 0:02:36.9]} 25.
Qf2 {[%clk 0:01:18.5]} 25... Rh7 {[%clk 0:02:17.8]} 0-1

[Event "*** Titled Tuesday Blitz"]
[Site "Chess.com"]
[Date "2020.04.21"]
[Round "5"]
[White "BvsN"]
[Black "Mizner"]
[Result "1-0"]
[WhiteElo "2381"]
[BlackElo "2503"]
[TimeControl "180+1"]
[EndTime "10:53:21 PDT"]
[Termination "BvsN won by resignation"]

1. d4 {[%clk 0:03:00.6]} 1... d5 {[%clk 0:02:59.6]} 2. c4 {[%clk 0:03:00.9]}
2... e6 {[%clk 0:03:00.1]} 3. Nc3 {[%clk 0:03:01]} 3... Nf6 {[%clk 0:03:00.5]}
4. cxd5 {[%clk 0:03:01.4]} 4... Nxd5 {[%clk 0:03:01.1]} 5. e4 {[%clk 0:03:01.6]}
5... Nxc3 {[%clk 0:03:01.7]} 6. bxc3 {[%clk 0:03:02.2]} 6... c5 {[%clk
0:03:02.5]} 7. a3 {[%clk 0:03:01.9]} 7... cxd4 {[%clk 0:03:02]} 8. cxd4 {[%clk
0:03:02.8]} 8... e5 {[%clk 0:03:02.6]} 9. Nf3 {[%clk 0:02:59.4]} 9... exd4
{[%clk 0:02:58.5]} 10. Bc4 {[%clk 0:02:58.5]} 10... Bc5 {[%clk 0:02:46.4]} 11.
Ng5 {[%clk 0:02:49.9]} 11... Be6 {[%clk 0:02:21.8]} 12. Bxe6 {[%clk 0:02:48.1]}
12... fxe6 {[%clk 0:02:21.6]} 13. Nxe6 {[%clk 0:02:31.9]} 13... Qe7 {[%clk
0:02:21.6]} 14. Qh5+ {[%clk 0:01:52.9]} 14... g6 {[%clk 0:02:21.1]} 15. Qe5
{[%clk 0:01:34.2]} 15... Rg8 {[%clk 0:02:21.1]} 16. Bg5 {[%clk 0:01:32.1]} 16...
Bd6 {[%clk 0:02:14.2]} 17. Qd5 {[%clk 0:01:14.7]} 1-0

[Event "*** Titled Tuesday Blitz"]
[Site "Chess.com"]
[Date "2020.04.21"]
[Round "5"]
[White "Anurag328"]
[Black "Problematique_99"]
[Result "1-0"]
[WhiteElo "2717"]
[BlackElo "2518"]
[TimeControl "180+1"]
[EndTime "10:53:25 PDT"]
[Termination "Anurag328 won by resignation"]

1. c4 {[%clk 0:03:00.9]} 1... g6 {[%clk 0:02:59.8]} 2. g3 {[%clk 0:03:00.3]}
2... Bg7 {[%clk 0:03:00.7]} 3. Bg2 {[%clk 0:03:01.1]} 3... d6 {[%clk 0:02:59.7]}
4. Nc3 {[%clk 0:03:01.5]} 4... Nf6 {[%clk 0:03:00]} 5. d3 {[%clk 0:03:02.2]}
5... O-O {[%clk 0:03:00.3]} 6. Nf3 {[%clk 0:03:03]} 6... c5 {[%clk 0:02:58.6]}
7. O-O {[%clk 0:03:03.5]} 7... Nc6 {[%clk 0:02:58.3]} 8. Rb1 {[%clk 0:03:03.9]}
8... Bd7 {[%clk 0:02:56.2]} 9. a3 {[%clk 0:03:04.2]} 9... a5 {[%clk 0:02:55.1]}
10. Ne1 {[%clk 0:03:02.7]} 10... Qc8 {[%clk 0:02:49.6]} 11. Bg5 {[%clk
0:03:02.8]} 11... Ra6 {[%clk 0:02:37.7]} 12. Nc2 {[%clk 0:02:56.7]} 12... Bh3
{[%clk 0:02:37.3]} 13. Bxf6 {[%clk 0:02:57.2]} 13... Bxf6 {[%clk 0:02:28.2]} 14.
Nd5 {[%clk 0:02:57.2]} 14... Bg7 {[%clk 0:02:25.4]} 15. b4 {[%clk 0:02:56.8]}
15... Bxg2 {[%clk 0:02:24.2]} 16. Kxg2 {[%clk 0:02:55.4]} 16... axb4 {[%clk
0:02:19.7]} 17. axb4 {[%clk 0:02:55.7]} 17... cxb4 {[%clk 0:02:11.1]} 18. Ncxb4
{[%clk 0:02:56]} 18... Re8 {[%clk 0:02:00.2]} 19. Nxa6 {[%clk 0:02:47.8]} 19...
bxa6 {[%clk 0:02:01.1]} 20. Qa4 {[%clk 0:02:45.7]} 20... e6 {[%clk 0:01:59.8]}
21. Rb6 {[%clk 0:02:45.2]} 21... Nd4 {[%clk 0:01:54.2]} 22. Nc7 {[%clk 0:01:56]}
22... Re7 {[%clk 0:01:47]} 23. Nxa6 {[%clk 0:01:55.4]} 23... Rb7 {[%clk
0:01:40.4]} 24. Rfb1 {[%clk 0:01:50.4]} 1-0

[Event "*** Titled Tuesday Blitz"]
[Site "Chess.com"]
[Date "2020.04.21"]
[Round "5"]
[White "crossingthestreet"]
[Black "DanielRensch"]
[Result "0-1"]
[WhiteElo "2257"]
[BlackElo "2487"]
[TimeControl "180+1"]
[EndTime "10:53:35 PDT"]
[Termination "DanielRensch won by resignation"]

1. c4 {[%clk 0:03:00.9]} 1... e5 {[%clk 0:02:59.2]} 2. Nc3 {[%clk 0:02:55.5]}
2... Nc6 {[%clk 0:02:59.2]} 3. e3 {[%clk 0:02:55.3]} 3... Nf6 {[%clk 0:02:57.6]}
4. Nf3 {[%clk 0:02:54.1]} 4... d5 {[%clk 0:02:52.6]} 5. cxd5 {[%clk 0:02:55]}
5... Nxd5 {[%clk 0:02:52.2]} 6. Bb5 {[%clk 0:02:55.5]} 6... Nxc3 {[%clk
0:02:51.5]} 7. bxc3 {[%clk 0:02:56.4]} 7... Bd6 {[%clk 0:02:50.2]} 8. d4 {[%clk
0:02:56.9]} 8... Bd7 {[%clk 0:02:35.8]} 9. O-O {[%clk 0:02:56.3]} 9... O-O
{[%clk 0:02:31.4]} 10. Rb1 {[%clk 0:02:49.7]} 10... b6 {[%clk 0:02:10.6]} 11.
Be2 {[%clk 0:02:40.4]} 11... Qe7 {[%clk 0:02:02.7]} 12. c4 {[%clk 0:02:38]}
12... e4 {[%clk 0:01:55.8]} 13. Nd2 {[%clk 0:02:37.5]} 13... f5 {[%clk
0:01:55.9]} 14. Nb3 {[%clk 0:02:28]} 14... f4 {[%clk 0:01:51.3]} 15. exf4 {[%clk
0:02:15.1]} 15... Bxf4 {[%clk 0:01:47.9]} 16. Bb2 {[%clk 0:02:10.9]} 16... e3
{[%clk 0:01:31]} 17. f3 {[%clk 0:02:05.3]} 17... Qh4 {[%clk 0:01:29.1]} 18. g3
{[%clk 0:01:44.8]} 18... Bxg3 {[%clk 0:01:27.4]} 19. hxg3 {[%clk 0:01:45.7]}
19... Qxg3+ {[%clk 0:01:26.8]} 20. Kh1 {[%clk 0:01:46.3]} 20... Rf4 {[%clk
0:01:20.4]} 0-1

[Event "*** Titled Tuesday Blitz"]
[Site "Chess.com"]
[Date "2020.04.21"]
[Round "5"]
[White "DACF2905"]
[Black "amelia91"]
[Result "1-0"]
[WhiteElo "2156"]
[BlackElo "1934"]
[TimeControl "180+1"]
[EndTime "10:53:38 PDT"]
[Termination "DACF2905 won by resignation"]

1. e4 {[%clk 0:03:00.9]} 1... c5 {[%clk 0:02:59.3]} 2. Nf3 {[%clk 0:02:59.5]}
2... Nc6 {[%clk 0:02:58.5]} 3. d4 {[%clk 0:02:59]} 3... cxd4 {[%clk 0:02:58.3]}
4. Nxd4 {[%clk 0:02:59.9]} 4... d6 {[%clk 0:02:57.1]} 5. c4 {[%clk 0:02:58.5]}
5... Nf6 {[%clk 0:02:53.8]} 6. Nc3 {[%clk 0:02:58]} 6... e6 {[%clk 0:02:53.8]}
7. Be3 {[%clk 0:02:56]} 7... Be7 {[%clk 0:02:53.8]} 8. Be2 {[%clk 0:02:54.4]}
8... O-O {[%clk 0:02:53.3]} 9. O-O {[%clk 0:02:54.4]} 9... a6 {[%clk 0:02:51.8]}
10. Rc1 {[%clk 0:02:52.6]} 10... Bd7 {[%clk 0:02:42]} 11. f3 {[%clk 0:02:50.1]}
11... Rc8 {[%clk 0:02:41.3]} 12. Qd2 {[%clk 0:02:48.7]} 12... Ne5 {[%clk
0:02:28]} 13. b3 {[%clk 0:02:46.2]} 13... Re8 {[%clk 0:02:20.8]} 14. h3 {[%clk
0:02:40.8]} 14... Nh5 {[%clk 0:02:12.1]} 15. f4 {[%clk 0:02:39.3]} 15... Ng3
{[%clk 0:02:08.4]} 16. fxe5 {[%clk 0:02:39.1]} 16... dxe5 {[%clk 0:02:05]} 17.
Rf3 {[%clk 0:02:29.6]} 17... exd4 {[%clk 0:02:04.1]} 18. Bxd4 {[%clk 0:02:20.8]}
18... Nxe2+ {[%clk 0:01:56.9]} 19. Qxe2 {[%clk 0:02:18.5]} 19... Bc6 {[%clk
0:01:50.6]} 20. Qf2 {[%clk 0:02:17.2]} 20... f6 {[%clk 0:01:40.1]} 21. Bb6
{[%clk 0:02:15.3]} 21... Qd7 {[%clk 0:01:32.7]} 22. Rd1 {[%clk 0:02:15.3]} 22...
Bd6 {[%clk 0:01:24]} 23. c5 {[%clk 0:02:14.3]} 23... Bxe4 {[%clk 0:01:14.8]} 24.
Rxd6 {[%clk 0:02:09.9]} 1-0

[Event "*** Titled Tuesday Blitz"]
[Site "Chess.com"]
[Date "2020.04.21"]
[Round "5"]
[White "hedgehog280"]
[Black "binbin239"]
[Result "1-0"]
[WhiteElo "2655"]
[BlackElo "2440"]
[TimeControl "180+1"]
[EndTime "10:53:44 PDT"]
[Termination "hedgehog280 won by resignation"]

1. c4 {[%clk 0:02:55.1]} 1... Nf6 {[%clk 0:02:59.2]} 2. Nc3 {[%clk 0:02:52.8]}
2... d5 {[%clk 0:02:58.1]} 3. cxd5 {[%clk 0:02:52.8]} 3... Nxd5 {[%clk 0:02:58]}
4. g3 {[%clk 0:02:53.7]} 4... g6 {[%clk 0:02:57.8]} 5. Bg2 {[%clk 0:02:54.1]}
5... Nxc3 {[%clk 0:02:56.3]} 6. bxc3 {[%clk 0:02:55]} 6... Bg7 {[%clk
0:02:56.6]} 7. Rb1 {[%clk 0:02:55.6]} 7... O-O {[%clk 0:02:54.6]} 8. Rxb7 {[%clk
0:02:54.6]} 8... Bxb7 {[%clk 0:02:49.1]} 9. Bxb7 {[%clk 0:02:55.5]} 9... Nd7
{[%clk 0:02:44.3]} 10. Bxa8 {[%clk 0:02:56]} 10... Qxa8 {[%clk 0:02:44.2]} 11.
Nf3 {[%clk 0:02:55.6]} 11... Ne5 {[%clk 0:02:42.6]} 12. O-O {[%clk 0:02:54]}
12... Nxf3+ {[%clk 0:02:42.5]} 13. exf3 {[%clk 0:02:54.5]} 13... Rd8 {[%clk
0:02:43]} 14. Qe2 {[%clk 0:02:52.4]} 14... e6 {[%clk 0:02:42.4]} 15. d4 {[%clk
0:02:52.4]} 15... c5 {[%clk 0:02:41.7]} 16. dxc5 {[%clk 0:02:48.6]} 16... Qd5
{[%clk 0:02:41.4]} 17. Be3 {[%clk 0:02:46.2]} 17... Bxc3 {[%clk 0:02:39.5]} 18.
Rc1 {[%clk 0:02:45.9]} 18... Ba5 {[%clk 0:02:29.8]} 19. Qa6 {[%clk 0:02:39.9]}
19... Bc7 {[%clk 0:01:04.7]} 20. Qxa7 {[%clk 0:02:39.4]} 20... Bb8 {[%clk
0:01:05]} 21. Qb6 {[%clk 0:02:35.8]} 21... Rc8 {[%clk 0:00:59.2]} 22. a4 {[%clk
0:02:31.2]} 22... Qxf3 {[%clk 0:00:59]} 23. c6 {[%clk 0:02:29.7]} 1-0

[Event "*** Titled Tuesday Blitz"]
[Site "Chess.com"]
[Date "2020.04.21"]
[Round "5"]
[White "NDePinEsPeRG"]
[Black "axvesik"]
[Result "0-1"]
[WhiteElo "2814"]
[BlackElo "2475"]
[TimeControl "180+1"]
[EndTime "10:53:53 PDT"]
[Termination "axvesik won by resignation"]

1. Nf3 {[%clk 0:03:00.9]} 1... Nf6 {[%clk 0:02:58.2]} 2. c4 {[%clk 0:03:00.3]}
2... e6 {[%clk 0:02:57.3]} 3. Nc3 {[%clk 0:03:00]} 3... d5 {[%clk 0:02:57]} 4.
e3 {[%clk 0:02:59.9]} 4... a6 {[%clk 0:02:56]} 5. b3 {[%clk 0:02:59.3]} 5... Be7
{[%clk 0:02:54.1]} 6. Bb2 {[%clk 0:02:58.5]} 6... c5 {[%clk 0:02:53.6]} 7. cxd5
{[%clk 0:02:56.6]} 7... exd5 {[%clk 0:02:53.6]} 8. d4 {[%clk 0:02:55.8]} 8...
cxd4 {[%clk 0:02:46.6]} 9. Nxd4 {[%clk 0:02:55.2]} 9... Nc6 {[%clk 0:02:47.5]}
10. Be2 {[%clk 0:02:54.6]} 10... O-O {[%clk 0:02:47.5]} 11. O-O {[%clk
0:02:54.1]} 11... Nxd4 {[%clk 0:02:39.2]} 12. Qxd4 {[%clk 0:02:53.3]} 12... Be6
{[%clk 0:02:40.1]} 13. Bf3 {[%clk 0:02:51.5]} 13... Qd7 {[%clk 0:02:39]} 14.
Rfd1 {[%clk 0:02:50.9]} 14... Rfd8 {[%clk 0:02:39]} 15. Na4 {[%clk 0:02:48.3]}
15... Qd6 {[%clk 0:02:16.8]} 16. Rac1 {[%clk 0:02:45.5]} 16... Rac8 {[%clk
0:02:16.1]} 17. Qb6 {[%clk 0:02:37.9]} 17... Qxb6 {[%clk 0:02:03.8]} 18. Nxb6
{[%clk 0:02:37.1]} 18... Rc6 {[%clk 0:02:04.7]} 19. Rxc6 {[%clk 0:02:32.2]}
19... bxc6 {[%clk 0:02:04.5]} 20. Rc1 {[%clk 0:02:31.6]} 20... c5 {[%clk
0:02:01.8]} 21. Rd1 {[%clk 0:02:23.4]} 21... c4 {[%clk 0:01:43.2]} 22. Bxf6
{[%clk 0:02:10.2]} 22... Bxf6 {[%clk 0:01:42.3]} 23. Nxd5 {[%clk 0:02:09.8]}
23... Bxd5 {[%clk 0:01:37.2]} 24. Bxd5 {[%clk 0:02:09]} 24... c3 {[%clk
0:01:33.1]} 25. Bf3 {[%clk 0:01:50.2]} 25... c2 {[%clk 0:01:28]} 26. Rc1 {[%clk
0:01:49.8]} 26... Rd2 {[%clk 0:01:26.5]} 0-1

[Event "*** Titled Tuesday Blitz"]
[Site "Chess.com"]
[Date "2020.04.21"]
[Round "5"]
[White "GmSergioBarrientos"]
[Black "MFguimaraes"]
[Result "1-0"]
[WhiteElo "2581"]
[BlackElo "2408"]
[TimeControl "180+1"]
[EndTime "10:54:19 PDT"]
[Termination "GmSergioBarrientos won on time"]

1. d4 {[%clk 0:03:00.9]} 1... d5 {[%clk 0:00:19.3]} 2. c4 {[%clk 0:02:58.9]}
2... e6 {[%clk 0:00:19]} 3. Nf3 {[%clk 0:02:59.1]} 3... Nf6 {[%clk 0:00:19]} 4.
Nc3 {[%clk 0:02:59.3]} 4... Be7 {[%clk 0:00:19.6]} 5. Bg5 {[%clk 0:02:59.2]}
5... dxc4 {[%clk 0:00:20]} 6. e4 {[%clk 0:02:58.9]} 6... h6 {[%clk 0:00:20.5]}
7. Bxf6 {[%clk 0:02:58.9]} 7... Bxf6 {[%clk 0:00:20.1]} 8. Bxc4 {[%clk
0:02:59.8]} 8... c5 {[%clk 0:00:20.4]} 9. e5 {[%clk 0:02:54.1]} 9... Be7 {[%clk
0:00:20.1]} 10. d5 {[%clk 0:02:52.4]} 10... exd5 {[%clk 0:00:20.4]} 11. Nxd5
{[%clk 0:02:52.5]} 11... Be6 {[%clk 0:00:20.5]} 12. O-O {[%clk 0:02:48.1]} 12...
Nc6 {[%clk 0:00:19.6]} 13. Qd2 {[%clk 0:02:34.5]} 13... O-O {[%clk 0:00:19.7]}
14. Rfd1 {[%clk 0:02:34.3]} 14... Re8 {[%clk 0:00:19.9]} 15. Qe3 {[%clk
0:02:32.8]} 15... Bxd5 {[%clk 0:00:19.8]} 16. Bxd5 {[%clk 0:02:32.4]} 16... Qc7
{[%clk 0:00:19.9]} 17. Qe4 {[%clk 0:02:26.9]} 17... Rad8 {[%clk 0:00:18.9]} 18.
h3 {[%clk 0:02:24.5]} 18... a6 {[%clk 0:00:15.7]} 19. a3 {[%clk 0:02:24.2]}
19... Rd7 {[%clk 0:00:15.8]} 20. Bxf7+ {[%clk 0:02:21.1]} 20... Kxf7 {[%clk
0:00:15.4]} 21. e6+ {[%clk 0:02:21.2]} 1-0